Cogmind - Beta 13 @@@ ROGUE MODE // 2024.04.05 @ 23:59:19 Player: Rougue Result: Self-destructed Performance ------------- Evolutions (2) 1000 Regions Visited (7) 1400 Robots Destroyed (63) 315 Value Destroyed (2199) 2199 Prototype IDs (33) 660 Alien Tech Used (0) 0 Bonus (1039) 1039 TOTAL SCORE: 6613 Bonus ------- High Alert Combat Kills 39 Entered Garrisons 200 Used RIF Installer 500 Aligned with FarCom 300 Cogmind --------- Core Integrity 426/550 Matter 213/300 Energy 240/240 System Corruption 3% Temperature Cool (0) Movement Treading (232) Ox1 Location -8/Materials Parts ------- > --- POWER (1) -------- Nuclear Core > --- PROPULSION (4) --- Light Treads Advanced Treads > --- UTILITY (4) ------ High-capacity Storage Unit Hacking Suite Hacking Suite Relay Coupler [NC] (1) > --- WEAPON (2) ------- Enhanced Autogun Datajack > --- INVENTORY (20) --- Deuterium Engine Deuterium Engine Light Nuclear Core Structural Scanner Hacking Suite Hacking Suite System Shield Relay Coupler [NC] (24) Relay Coupler [Grunt] (23) Relay Coupler [Hunter] (16) Heavy Particle Gun Enhanced Autogun Improved Light Cannon Improved Light Cannon Grenade Launcher Grenade Launcher Datajack Heavy Mace Peak State ------------ > --- POWER ------------ Nuclear Core > --- PROPULSION ------- Light Treads Light Treads Light Treads Light Treads > --- UTILITY ---------- High-capacity Storage Unit 0b10 Alert Chip Improved Propulsion Shielding Hacking Suite > --- WEAPON ----------- Enhanced Autogun Enhanced Autogun > --- INVENTORY -------- Deuterium Engine Deuterium Engine Light Nuclear Core Structural Scanner Trap Scanner Transport Network Coupler Hacking Suite Hacking Suite Hacking Suite System Shield Relay Coupler [NC] Relay Coupler [Grunt] Heavy Particle Gun Improved Light Cannon Improved Light Cannon Grenade Launcher Grenade Launcher Datajack Datajack Heavy Mace [Rating: 32] Favorites ----------- Power Light Nuclear Core Engine Ion Engine Power Core Light Nuclear Core Propulsion Light Treads Treads Light Treads Utility Structural Scanner Device Structural Scanner Storage High-capacity Storage Unit Processor 0b10 Alert Chip Hackware Hacking Suite Protection Improved Propulsion Shielding Weapon Enhanced Autogun Energy Gun Heavy Particle Gun Ballistic Gun Enhanced Autogun Ballistic Cannon Light Cannon Launcher Grenade Launcher Impact Weapon Heavy Mace Special Melee Weapon Datajack Build | -11 -10 -10 -10 -9 -8 -8 -8 ------- Run | Yrd Mat Min Exi Min Mat Gar Mat Slots Evolved 4 | . . . . . 4 . . Power . | . . . . . . . . Propulsion 2 | . . . . . 2 . . Utility 2 | . . . . . 2 . . Weapon . | . . . . . . . . Parts Attached 60 | 6 4 1 . 2 26 16 5 Power 4 | 1 1 . . . 1 1 . Engine 1 | 1 . . . . . . . Core 3 | . 1 . . . 1 1 . Reactor . | . . . . . . . . Propulsion 16 | 2 . . . . 9 4 1 Treads 16 | 2 . . . . 9 4 1 Leg . | . . . . . . . . Wheel . | . . . . . . . . Hover . | . . . . . . . . Flight . | . . . . . . . . Utility 10 | 1 2 . . . 3 1 3 Device 1 | . 1 . . . . . . Storage 3 | 1 1 . . . 1 . . Processor 2 | . . . . . 1 . 1 Hackware 3 | . . . . . 1 . 2 Protection 1 | . . . . . . 1 . Artifact . | . . . . . . . . Weapon 30 | 2 1 1 . 2 13 10 1 Energy Gun 1 | . . . . . 1 . . Energy Cannon . | . . . . . . . . Ballistic Gun 12 | 2 . . . . 7 3 . Ballistic Cannon 7 | . 1 1 . . 3 2 . Launcher 7 | . . . . 2 2 3 . Special Weapon . | . . . . . . . . Impact Weapon 2 | . . . . . . 2 . Slashing Weapon . | . . . . . . . . Piercing Weapon . | . . . . . . . . Special Melee Weapon 1 | . . . . . . . 1 Unidentified Prototypes 2 | . . . . . 2 . . Parts Lost 10 | . 3 . . . . 7 . Power 1 | . 1 . . . . . . Propulsion 7 | . 1 . . . . 6 . Utility 1 | . . . . . . 1 . Weapon 1 | . 1 . . . . . . Highest Loss Streak 3 | . 2 . . . . 3 . To Critical Strikes . | . . . . . . . . Average Slot Usage (%) 88 | . 94 85 85 85 94 80 73 Core 10 | . 10 14 14 14 9 9 9 Treads 23 | . 24 14 14 14 30 21 10 Device 9 | . 12 14 14 14 9 1 . Storage 11 | . 14 14 14 14 9 9 9 Processor 4 | . . . . . 8 9 3 Hackware 6 | . . . . . 8 9 23 Ballistic Gun 11 | . 24 . . . 14 10 9 Ballistic Cannon 5 | . 3 27 28 3 2 2 . Launcher 4 | . . . . 24 1 3 2 Naked Turns . | . . . . . . . . Heaviest Build 56 | 14 31 32 32 32 53 56 53 Greatest Support 83 | 40 40 20 20 20 83 83 42 Greatest Overweight (x) 2 | . 1 1 1 1 1 2 2 Average Overweight (x) . | . . 1 1 1 . . 1 Largest Inventory Capacity 20 | 8 15 15 15 15 20 20 20 Average Capacity 17 | 7 13 15 15 15 19 20 20 Most Carried 20 | 1 11 15 15 15 20 20 20 Average Carried 15 | . 8 13 14 15 18 19 18 Final Capacity 20 | 8 15 15 15 15 20 20 20 Final Carried 20 | 1 11 15 15 15 20 20 18 Class Distribution -------------------- 49% | Mutant 29% | Skirmisher 10% | Scavenger-Skirmisher 9% | Bothacker-Mutant Dominant Class ---------------- Mutant | -10/Materials Mutant | -10/Mines Mutant | -10/Exiles Mutant | -9/Mines Skirmisher | -8/Materials Mutant | -8/Garrison Bothacker-Mutant | -8/Materials Resources | -11 -10 -10 -10 -9 -8 -8 -8 ----------- Run | Yrd Mat Min Exi Min Mat Gar Mat Matter Collected 1867 | 211 431 32 . 31 767 395 . Remotely . | . . . . . . . . Salvage Created 1987 | 75 555 61 . . 809 487 . Parts 119 | 2 29 3 . . 60 25 . Haulers Intercepted 8 | . 2 . . . 6 . . Recyclers Shooed . | . . . . . . . . Parts Field Recycled . | . . . . . . . . Retrieved Matter . | . . . . . . . . Parts Self-Destructed . | . . . . . . . . Prevented . | . . . . . . . . Kills | -11 -10 -10 -10 -9 -8 -8 -8 ------- Run | Yrd Mat Min Exi Min Mat Gar Mat Combat Hostiles Destroyed 47 | . 9 2 . . 18 18 . Guns 29 | . 8 . . . 11 10 . Cannons 8 | . 1 2 . . 3 2 . AOE 10 | . . . . . 4 6 . Classes Destroyed 10 | 1 4 . . . 4 1 . Worker 1 | . 1 . . . . . . Builder 1 | . . . . . 1 . . Hauler 8 | . 2 . . . 6 . . Recycler 1 | 1 . . . . . . . Operator 4 | . 2 . . . 2 . . Watcher 1 | . . . . . 1 . . Swarmer 17 | . . . . . 10 7 . Grunt 26 | . 9 2 . . 5 10 . Brawler 1 | . . . . . . 1 . Sentry 3 | . . . . . 3 . . Best Kill Streak 9 | 1 2 2 . . 9 6 . Combat Bots Only 7 | . 2 2 . . 7 6 . Max Kills in Single Turn 5 | 1 2 1 . . 5 4 . Gunslinging . | . . . . . . . . Exploded 4 | . . . . . 3 4 . Melee . | . . . . . . . . Uniques/NPCs Destroyed . | . . . . . . . . Combat | -11 -10 -10 -10 -9 -8 -8 -8 -------- Run | Yrd Mat Min Exi Min Mat Gar Mat Hostile Shots Fired 196 | . 58 11 . . 49 78 . Missed 49 | . 13 4 . . 15 17 . Damage Taken 1938 | . 573 99 . . 484 782 . Core 221 | . 82 15 . . 45 79 . Absorbed by Shields . | . . . . . . . . Redirected to Shielding 102 | . . . . . . 102 . Core Remaining (%) 80 | 100 . . . 61 . . . Volleys Fired 162 | 4 58 5 . . 60 35 . Largest 2 | 2 2 2 . . 2 2 . Hottest 78 | 40 55 70 . . 78 78 . Shots Fired 308 | 8 111 10 . . 120 59 . Gun 244 | 8 105 . . . 93 38 . Cannon 51 | . 6 10 . . 21 14 . Launcher 13 | . . . . . 6 7 . Special . | . . . . . . . . Kinetic 295 | 8 111 10 . . 114 52 . Thermal . | . . . . . . . . Explosive 13 | . . . . . 6 7 . Electromagnetic . | . . . . . . . . Robot Hit Streak 13 | 3 13 2 . . 13 6 . Robot Miss Streak 3 | 2 3 1 . . 3 3 . Penetration Max . | . . . . . . . . Secondary Targets 2 | . 1 . . . . 1 . Max Gunslinging Chain 1 | . 1 . . . . 1 . Shots Hit Robots 201 | 5 79 6 . . 73 33 5 Core Hits 102 | 2 29 3 . . 36 32 . Critical Kills 1 | . . . . . 1 . . Critical Parts Destroyed . | . . . . . . . . Critical Strikes 2 | . . 1 . . 1 . . Destroy 1 | . . . . . 1 . . Blast 1 | . . 1 . . . . . Melee Attacks 7 | . . . . . . 2 5 Impact 2 | . . . . . . 2 . Slashing . | . . . . . . . . Piercing . | . . . . . . . . Sneak Attacks 3 | . . . . . . . 3 Combat Hostiles . | . . . . . . . . Follow-up Attacks . | . . . . . . . . Damage Inflicted 3840 | 64 1047 103 . . 1554 1072 . Guns 2398 | 64 979 . . . 991 364 . Cannons 583 | . 68 103 . . 231 181 . Explosions 859 | . . . . . 332 527 . Melee . | . . . . . . . . Ramming . | . . . . . . . . Kinetic 2981 | 64 1047 103 . . 1222 545 . Thermal . | . . . . . . . . Explosive 859 | . . . . . 332 527 . Electromagnetic . | . . . . . . . . Impact . | . . . . . . . . Slashing . | . . . . . . . . Piercing . | . . . . . . . . Highest Corruption 3 | . . . . . . . 3 Average Corruption 2 | . . . . . . . 2 Corruption Purged . | . . . . . . . . Corruption Blocked . | . . . . . . . . Effects 4 | . . . . . . . 4 Matter Fused 1 | . . . . . . . 1 Heat Flow Errors 1 | . . . . . . . 1 Data Loss (minor) 1 | . . . . . . . 1 Data Loss (major) 1 | . . . . . . . 1 Overload Shots . | . . . . . . . . Overflow Damage 13 | . . . . . . 13 . Projectiles . | . . . . . . . . Explosions 13 | . . . . . . 13 . Melee . | . . . . . . . . Knockbacks 3 | . . 3 . . . . . Impact . | . . . . . . . . Kinetic 3 | . . 3 . . . . . Secondary . | . . . . . . . . Self-Inflicted Damage 60 | . . . . . . 60 . Shots 1 | . . . . . . 1 . Rammed . | . . . . . . . . Targets Rammed . | . . . . . . . . Kicked . | . . . . . . . . Crushed . | . . . . . . . . Highest Temperature 263 | . 36 78 . . 44 102 263 Average Temperature 22 | . 10 34 . . 12 24 143 Received Heat Transfer 879 | . 354 57 . . 162 306 . Siege Activations . | . . . . . . . . Robots Corrupted . | . . . . . . . . Combat Hostiles . | . . . . . . . . Parts Fried . | . . . . . . . . Impact Corruptions . | . . . . . . . . Robots Melted . | . . . . . . . . Combat Hostiles . | . . . . . . . . Parts Melted . | . . . . . . . . Heat Transferred . | . . . . . . . . Parts Sabotaged . | . . . . . . . . Parts Stolen . | . . . . . . . . Parts Stripped . | . . . . . . . . Power Chain Reactions . | . . . . . . . . Alert | -11 -10 -10 -10 -9 -8 -8 -8 ------- Run | Yrd Mat Min Exi Min Mat Gar Mat Peak Influence 589 | 5 197 51 . . 220 589 286 Initial 286 | . 3 1 . . . 128 286 Average 101 | 1 43 44 . . 59 376 208 Maximum Alert Level 2 | . . . . . 1 2 1 Low Security (%) 84 | 100 100 100 . 100 96 30 38 Level 1 9 | . . . . . 3 21 61 Level 2 6 | . . . . . . 47 . Level 3 . | . . . . . . . . Level 4 . | . . . . . . . . Level 5 . | . . . . . . . . High Security . | . . . . . . . . Max Security . | . . . . . . . . Squads Dispatched 11 | . 2 1 . . 5 . 3 Investigation 2 | . . 1 . . . . 1 Extermination . | . . . . . . . . Reinforcement 9 | . 2 . . . 5 . 2 Assault . | . . . . . . . . Garrison . | . . . . . . . . Intercept . | . . . . . . . . Searches Triggered . | . . . . . . . . Construction Impeded 1 | . . . . . 1 . . Haulers Reinforced . | . . . . . . . . Active Scanning Responses . | . . . . . . . . Cargo Convoy Interrupts . | . . . . . . . . Stealth | -11 -10 -10 -10 -9 -8 -8 -8 --------- Run | Yrd Mat Min Exi Min Mat Gar Mat Distress Signals 6 | . . . . . 4 . 2 Communications Jammed . | . . . . . . . . Distress Signals . | . . . . . . . . Times Spotted 76 | . 25 2 . . 28 20 1 Peak Tracking Total 8 | . 3 2 . . 6 8 1 Tactical Retreats 2 | . 1 . . . . 1 . Traps | -11 -10 -10 -10 -9 -8 -8 -8 ------- Run | Yrd Mat Min Exi Min Mat Gar Mat Traps Triggered 6 | . . . . . 3 1 2 Indirectly . | . . . . . . . . Trap Hack Attempts . | . . . . . . . . Triggered . | . . . . . . . . Disarmed . | . . . . . . . . Reprogrammed . | . . . . . . . . Reused . | . . . . . . . . Traps Extracted . | . . . . . . . . Installed . | . . . . . . . . Triggered . | . . . . . . . . Machines | -11 -10 -10 -10 -9 -8 -8 -8 ---------- Run | Yrd Mat Min Exi Min Mat Gar Mat Machines Disabled 6 | . . . . . 1 5 . Max in Single Turn 3 | . . . . . 1 3 . Garrison Relay 2 | . . . . . . 2 . Phase Generator 1 | . . . . . . 1 . Machines Repaired . | . . . . . . . . Machines Dismantled . | . . . . . . . . Machines Sabotaged . | . . . . . . . . Overloaded Fab Kills . | . . . . . . . . Hacking | -11 -10 -10 -10 -9 -8 -8 -8 --------- Run | Yrd Mat Min Exi Min Mat Gar Mat Machines Accessed 24 | . 4 1 1 . 14 2 2 Terminals 16 | . 3 . . . 10 2 1 Fabricators . | . . . . . . . . Repair Stations . | . . . . . . . . Recycling Units 3 | . 1 . . . 1 . 1 Scanalyzers 2 | . . . . . 2 . . Garrison Access 1 | . . . . . 1 . . Total Hacks 49 | . 9 1 1 . 31 4 3 Successful 33 | . 7 1 1 . 21 1 2 Failed 16 | . 2 . . . 10 3 1 Catastrophic . | . . . . . . . . Database Lockouts . | . . . . . . . . Manual 14 | . 3 . 1 . 10 . . Terminals 35 | . 6 . . . 23 4 2 Fabricators . | . . . . . . . . Repair Stations . | . . . . . . . . Recycling Units 5 | . 3 . . . 1 . 1 Scanalyzers 5 | . . . . . 5 . . Garrison Access 2 | . . . . . 2 . . Terminal Hacks 20 | . 5 1 1 . 11 1 1 Robot Analysis 1 | . . . . . 1 . . Prototype ID Bank 5 | . 3 . . . 1 . 1 Open Door 1 | . . 1 . . . . . Emergency Access Points 1 | . . . . . . 1 . Alert Level 1 | . 1 . . . . . . Locate Traps 3 | . . . . . 3 . . Patrol Status 1 | . 1 . . . . . . Recall Investigation 1 | . . . . . 1 . . Hauler Manifests 1 | . . . . . 1 . . Zone Layout 4 | . . . . . 4 . . Derelict Proto ID Bank 1 | . . . 1 . . . . Fabricator Hacks . | . . . . . . . . Repair Station Hacks . | . . . . . . . . Recycling Unit Hacks 4 | . 2 . . . 1 . 1 Report Inventory 3 | . 1 . . . 1 . 1 Retrieve Components 1 | . 1 . . . . . . Scanalyzer 5 | . . . . . 5 . . Insert Component 2 | . . . . . 2 . . Analyze 3 | . . . . . 3 . . Garrison Access Hacks 2 | . . . . . 2 . . Unlock Access 1 | . . . . . 1 . . Coupler Status 1 | . . . . . 1 . . Unauthorized Hacks 2 | . . . . . 2 . . Terminals 2 | . . . . . 2 . . Assimilate 2 | . . . . . 2 . . Fabricators . | . . . . . . . . Repair Stations . | . . . . . . . . Recycling Units . | . . . . . . . . Scanalyzers . | . . . . . . . . Garrison Access . | . . . . . . . . Data Cores Recovered . | . . . . . . . . Used . | . . . . . . . . Hacking Detections 16 | . 2 . . . 11 2 1 Full Trace Events . | . . . . . . . . Feedback Events . | . . . . . . . . Feedback Blocked . | . . . . . . . . Robot Schematics Acquired . | . . . . . . . . Robots Built . | . . . . . . . . Authchips . | . . . . . . . . Time . | . . . . . . . . Total Robot Build Rating . | . . . . . . . . Part Schematics Acquired 2 | . . . . . 2 . . Parts Built . | . . . . . . . . Authchips . | . . . . . . . . Time . | . . . . . . . . Total Part Build Rating . | . . . . . . . . Parts Repaired . | . . . . . . . . Time . | . . . . . . . . Parts Recycled . | . . . . . . . . Recycled Matter . | . . . . . . . . Retrieved Matter . | . . . . . . . . Retrieved Components 9 | . 9 . . . . . . Parts Scanalyzed 2 | . . . . . 2 . . Part Schematics Acquired 2 | . . . . . 2 . . Parts Damaged . | . . . . . . . . Bothacking | -11 -10 -10 -10 -9 -8 -8 -8 ------------ Run | Yrd Mat Min Exi Min Mat Gar Mat Used RIF Installer 1 | . . . . . . 1 . Robots Hacked 2 | . . . . . . . 2 Non-combat 2 | . . . . . . . 2 Combat . | . . . . . . . . Robot Hacks Applied 4 | . . . . . . . 4 drop_inventory 1 | . . . . . . . 1 locate_stockpiles 1 | . . . . . . . 1 mark_security 1 | . . . . . . . 1 formatsys_high 1 | . . . . . . . 1 Relay Couplers Released 10 | . . . . . . 10 . Machine Destruction 10 | . . . . . . 10 . Attached 1 | . . . . . . . 1 Fabnet Peak Effective % . | . . . . . . . . Robots Rewired . | . . . . . . . . Allies Hacked . | . . . . . . . . Hacks Repelled . | . . . . . . . . Allies | -11 -10 -10 -10 -9 -8 -8 -8 -------- Run | Yrd Mat Min Exi Min Mat Gar Mat Total Allies 1 | . . . . . . . 1 Largest Group 1 | . . . . . . . 1 Highest-Rated Group 19 | . . . . . . . 19 Highest-Rated Ally 19 | . . . . . . . 19 Total Orders . | . . . . . . . . Ally Attacks . | . . . . . . . . Total Damage . | . . . . . . . . Kills . | . . . . . . . . Allies Corrupted 1 | . . . . . . . 1 Allies Melted . | . . . . . . . . Intel | -11 -10 -10 -10 -9 -8 -8 -8 ------- Run | Yrd Mat Min Exi Min Mat Gar Mat Robot Analysis Total 1 | . . . . . 1 . . Derelict Logs Recovered 1 | . . . . 1 . . . Drone Launches . | . . . . . . . . Drone Recoveries . | . . . . . . . . Exploration | -11 -10 -10 -10 -9 -8 -8 -8 ------------- Run | Yrd Mat Min Exi Min Mat Gar Mat Turns Passed 7754 | 71 1399 326 501 890 2997 916 654 Spaces Moved 3084 | 32 528 127 209 335 1317 340 196 Core 3 | 3 . . . . . . . Treads 3081 | 29 528 127 209 335 1317 340 196 Legs . | . . . . . . . . Wheels . | . . . . . . . . Hover . | . . . . . . . . Flight . | . . . . . . . . Fastest Speed 50 | 50 160 240 240 240 160 160 232 Average Speed 196 | 149 178 240 240 240 160 220 301 Slowest Speed 320 | 160 240 240 240 240 240 320 320 Overloaded Moves . | . . . . . . . . Propulsion Burnouts . | . . . . . . . . Robots Hopped . | . . . . . . . . Cave-ins Triggered . | . . . . . . . . Exploration Rate (%) 47 | 3 61 34 59 62 97 38 24 Regions Visited 7 Branch Regions 3 Pre-discovered Areas 1 | . . . . 1 . . . Known Exits Taken 1 | . . . . . 1 . . Unknown Exits Taken 5 | 1 1 1 1 1 . . . Scrap Searched 1 | . . . . 1 . . . Spaces Dug . | . . . . . . . . Terrain Destroyed 117 | . . . . . 24 93 . Melee . | . . . . . . . . Projectile 1 | . . . . . 1 . . AOE 116 | . . . . . 23 93 . Terrain Rammed . | . . . . . . . . Walls Destroyed . | . . . . . . . . Machines Disabled . | . . . . . . . . Actions | -11 -10 -10 -10 -9 -8 -8 -8 --------- Run | Yrd Mat Min Exi Min Mat Gar Mat Total 4510 | 44 875 139 210 421 2111 456 254 Wait 1143 | 2 275 3 . 85 676 55 47 Move 3078 | 31 527 126 208 334 1317 339 196 Hop . | . . . . . . . . Pick Up 40 | 1 11 4 1 . 18 4 1 Fast Attach 17 | 6 1 . . . 7 2 1 Attach 8 | . 2 . . . 4 1 1 Detach 1 | . . . . . 1 . . Swap 35 | . 1 1 . 2 15 13 3 Drop 17 | . . . 1 . 13 3 . Fire 162 | 4 58 5 . . 60 35 . Melee 7 | . . . . . . 2 5 Ram . | . . . . . . . . Kick . | . . . . . . . . Crush . | . . . . . . . . Escape Stasis 2 | . . . . . . 2 . Rewire . | . . . . . . . . Trap . | . . . . . . . . Miscellaneous . | . . . . . . . . Route ------- -11/Scrapyard -10/Materials (discovered 3 exits: [*Mat] / *Min x2) -10/Mines -10/Exiles -9/Mines -8/Materials (discovered 4 exits: [*Fac x3] / Gar) -8/Garrison -8/Materials (discovered 1 exit: [*Fac]) History --------- Turn | Location | Event 4 | -11/Scrapyard | Discovered new exit (range 15) 72 | -11/Scrapyard | Entered Materials 321 | -10/Materials | Build established: Mutant 574 | -10/Materials | Discovered new exit (range 16) 772 | -10/Materials | Discovered new exit (range 6) 839 | -10/Materials | Discovered new exit (range 11) 1471 | -10/Materials | Entered Mines 1498 | -10/Mines | Met a Derelict bent on vengeance 1618 | -10/Mines | Met a Derelict shopkeep closing up shop 1788 | -10/Mines | Deemed a non-threat by the Exiles lab entrance 1788 | -10/Mines | Discovered new exit (range 5) 1797 | -10/Mines | Entered Exiles 1862 | -10/Exiles | Met 8R-AWN 1898 | -10/Exiles | Met EX-HEX 1963 | -10/Exiles | Met EX-BIN 1989 | -10/Exiles | Aligned with FarCom system 1992 | -10/Exiles | Given EX-Vault access code 2047 | -10/Exiles | Opened EX-Vault 2067 | -10/Exiles | Found 0b10 Alert Chip 2118 | -10/Exiles | Warned to stay clear of 0b10 Research branches 2188 | -10/Exiles | Met EX-DEC 2267 | -10/Exiles | Discovered new exit (range 15) 2298 | -10/Exiles | Left Exiles lab with 0b10 Alert Chip 2298 | -10/Exiles | Entered Mines 2533 | -9/Mines | Learned location of Zion (-7) 3078 | -9/Mines | Discovered new exit (range 9) 3188 | -9/Mines | Entered Materials 3188 | -8/Materials | Evolved 4 slots: Propulsion x2, Utility x2 3517 | -8/Materials | Build established: Skirmisher 3695 | -8/Materials | Discovered new exit (range 13) 4111 | -8/Materials | Discovered new exit (range 14) 4386 | -8/Materials | Met 7R-MNS 4435 | -8/Materials | Discovered new exit (range 16) 5670 | -8/Materials | Build established: Scavenger-Skirmisher 5745 | -8/Materials | Destroyed 7 combat bots 6185 | -8/Materials | Identified exit to Garrison 6185 | -8/Materials | Entered Garrison 6282 | -8/Garrison | Triggered checkpoint 6331 | -8/Garrison | Lost 3 parts (3n) 6338 | -8/Garrison | Garrison Relay disabled 6510 | -8/Garrison | Triggered checkpoint 6662 | -8/Garrison | Garrison Relay disabled 6696 | -8/Garrison | Triggered checkpoint 6810 | -8/Garrison | Discovered new exit (range 10) 6879 | -8/Garrison | Build established: Mutant 6911 | -8/Garrison | Phase Generator disabled 7024 | -8/Garrison | Installed Relay Interface Framework 7101 | -8/Garrison | Entered Materials 7324 | -8/Materials | Build established: Bothacker-Mutant 7730 | -8/Materials | Discovered new exit (range 3) 7755 | -8/Materials | Self-destructed Last Messages --------------- 07571_ The floor emits a surge of raw power. 07571_ System corrupted (+1). 07574_ U-05 Engineer lays Concrete. 07580_ Informer 3a triggered Shock Trap. 07580_ The floor emits a surge of raw power. 07581_ Informer 3a system terminally corrupted. 07582_ U-05 Engineer lays Concrete. 07619_ Acquired Adv. Treads. 07642_ Connecting with Scanalyzer... 07647_ System corrupted: Heat flow error (+287). 07678_ System corrupted: Component data lost. 07709_ System corrupted: Substantial component data lost. 07730_ EXIT=FOUND 07742_ System corrupted: Matter fused (-7). 07753_ Connecting with Terminal... >>Prototypes Downloading prototype IDs... Hvy. Ion Engine Prc. Beam Rifle Map ----- +----------------------------------------------------+ | ????????????????????????????????????# # #? | | ????????????????????????????????????########### #? | | ???????????????????????????????????????# ??# #? | | ???????????????????????????????????????# # #? | | ???????????????????????????????????????# + #? | | ???????????????????????????????????????# "Y" # #? | | ???????????????????????????????????????# ""??# #? | | ??????????????????????????????????????? ! ????# #? | | ??????????????????????????????????????????????# #? | | ??????????????????????????????????????????????# #? | | ??????????????????????????????????????????????# #? | | ??????????????????????????????????????????????#/## | | ??????????????????????????????????????????????# ] | | ??????????????????????????????????????????????# | | ??????????????????????????????????????????????#![ | | ??????????????????????????????????????????????# | | ??????????????????????????????????????????????#! | | ??????????????????????????????????????????????# | | ??????????????????????????????????????????????# | | ?????????????????????????????????????????????###+# | | ?????????????????????????????????????????????+ | | ?????????????????????????????????????????????# | | ????????????????????????#######??????????????# ## | | ????????????##+######+### #??????????????# # | | ?????????? #????????????? + + | | ????????Y? @ T #????????????#??+## | | ?????????? k #?????????????????# | | ?????????????#+########## #?????????????????# | | ????????????????????????## ##?????????????????# | | ?????????????????????????# #??????????????????## | | ??????????????????######## ##################### | | ??????????????????# + | | ??????????????????# !! ! # ###################+# | | ??????????????????# !! # < #???????????????# | | ??????????????????# !! ?# #???????????????# | | ??????????????????# ?#####???????????????# | | ??????????????????# ??????????????????????#"S | | ??????????????????#####??????????????????????#""" | | ?????????????????????????????????????????????# "" | | ?????????????????????????????????????????????# | | ?????????????????????????????????????????????##### | | | | | | | | | | | | | | | | | | | +----------------------------------------------------+ Best States ------------- Heat Dissipation 31 Energy Generation 14 Energy Capacity 250 Matter Stores 300 Matter Capacity 300 Sight Range 16 Terrain Scan Density 10 Propulsion Shielding 66 Evasion (%) 40 Recoil Reduction 4 Offensive Hacking 20 Relay Coupler Types 1 Relay Coupler Value 14 Item Schematics ----------------- Hacking Suite | -8/Materials | Scanalyzed Imp. Treads | -8/Materials | Scanalyzed Robot Schematics ------------------ None Fabricated ------------ Nothing Alien Tech Used ----------------- None Achievements -------------- Assimilation Complete Challenges ------------ None Game ------ Seed TerrabombCombatGun Manual? 1 Play Time 01:07:52 Cumulative 35.8 hours Start 2024.04.05 @ 20:51:54 End 2024.04.05 @ 23:59:19 Sessions 5 Manual Loads 0 Difficulty Rogue Special Mode None Game No. 68 Rogue 68 Adventurer 0 Explorer 0 Win Type - Total 0 Types 0/0/0/0/0/0/0/0/0 Lore% 22 Gallery% 23 Achievement% 23 Wizard Run 0 Options --------- Layout 1 ASCII 0 Keyboard 0 Movement Mouse Keybinds 0 Fullscreen 2 Font 24/Smallcaps Map View 50x35 Zoom Use 0% Tactical HUD 1 Map Filters NONE Filters NONE Steam 1 RUN: 32514b7d-0050-421e-bdaa-d69b6b081732